[Event "FIDE WCCC Open-08 2024"]
[Site "Montesilvano"]
[Date "2024.11.24"]
[Round "9.3"]
[White "Sattwik Swain"]
[Black "Pham, Han Nam"]
[Result "1/2-1/2"]
[ECO "B36"]
[WhiteElo "1787"]
[BlackElo "1912"]
[Annotator "NA RC"]
[PlyCount "137"]
[EventDate "2024.11.18"]
[EventType "swiss"]
[EventCountry "ITA"]
[SourceTitle "playchess.com"]
[Source "ChessBase"]
[SourceQuality "1"]
[TimeControl "5400+30"]

1. e4 {[%emt 0:00:02]} c5 {[%emt 0:00:24]} 2. Nf3 {[%emt 0:00:09]} Nc6 {[%emt 0:00:23]} 3. d4 {[%emt 0:00:17]} cxd4 {[%emt 0:00:13]} 4. Nxd4 {[%emt 0:00:13]} g6 {[%emt 0:00:14]} 5. c4 {[%emt 0:00:54]} Nf6 {[%emt 0:00:20]} 6. Nc3 {[%emt 0:00:17]} Nxd4 {[%emt 0:00:17]} 7. Qxd4 {[%emt 0:00:18]} d6 {[%emt 0:00:13]} 8. Be3 {[%emt 0:00:19]} Bg7 {[%emt 0:00:38]} 9. Be2 {[%emt 0:01:01]} O-O {[%emt 0:00:36]} 10. Qd2 {[%emt 0:00:20]} a5 {[%emt 0:00:22]} 11. O-O {[%emt 0:00:31]} a4 {[%emt 0:00:13]} 12. Rac1 {[%emt 0:00:45]} Qa5 {[%emt 0:00:24]} 13. Rfd1 {[%emt 0:01:25]} Be6 {[%emt 0:00:30]} 14. f3 {[%emt 0:05:03]} Rfc8 {[%emt 0:00:44]} 15. Nd5 {[%emt 0:10:19]} Qxd2 {[%emt 0:01:15]} 16. Bxd2 {[%emt 0:00:20]} Bxd5 {[%emt 0:00:38]} 17. cxd5 {[%emt 0:00:37]} Nd7 {[%emt 0:00:25]} 18. Bb5 {[%emt 0:06:55]} Nc5 {[%emt 0:01:43]} 19. Rc2 {[%emt 0:03:48]} Kf8 {[%emt 0:05:41]} 20. Rdc1 {[%emt 0:02:16]} Rd8 {[%emt 0:02:12]} 21. Kf1 {[%emt 0:01:46]} h6 {[%emt 0:01:00]} 22. g4 {[%emt 0:18:39]} e6 {[%emt 0:02:34]} 23. Bb4 {[%emt 0:17:31]} b6 {[%emt 0:01:09]} 24. Bc6 {[%emt 0:01:52]} Ra7 {[%emt 0:02:18]} 25. Rd1 {[%emt 0:04:24]} Ke7 {[%emt 0:02:47]} 26. Ke2 {[%emt 0:04:05]} Be5 {[%emt 0:04:34]} 27. h3 {[%emt 0:01:31]} g5 {[%emt 0:01:18]} 28. Rb1 {[%emt 0:05:14]} f5 {[%emt 0:04:17]} 29. Rc4 {[%emt 0:09:43]} Rb8 {[%emt 0:04:10]} 30. Bc3 {[%emt 0:02:00]} exd5 {[%emt 0:05:28]} 31. exd5 {[%emt 0:01:42]} Kf6 {[%emt 0:01:48]} 32. Rb4 {[%emt 0:00:25]} f4 {[%emt 0:02:56]} 33. Bxe5+ {[%emt 0:01:25]} Kxe5 {[%emt 0:01:49]} 34. Kd2 {[%emt 0:00:07]} Kf6 {[%emt 0:00:46]} 35. Re1 {[%emt 0:00:39]} Ra6 {[%emt 0:02:33]} 36. Kc3 {[%emt 0:00:26]} Ra7 {[%emt 0:01:47]} 37. Kd4 {[%emt 0:00:22]} Ra5 {[%emt 0:01:34]} 38. Rc4 {[%emt 0:00:30]} Ra7 {[%emt 0:01:05]} 39. Rc2 {[%emt 0:00:10]} b5 {[%emt 0:01:36]} 40. Rce2 {[%emt 0:01:08]} b4 {[%emt 0:00:28]} 41. Kc4 {[%emt 0:00:14]} b3 {[%emt 0:01:08]} 42. a3 {[%emt 0:00:20]} Rd8 {[%emt 0:01:06]} 43. Rh1 {[%emt 0:00:53]} Nd7 {[%emt 0:04:34]} 44. Re6+ {[%emt 0:00:47]} Kg7 {[%emt 0:04:25]} 45. Re7+ {[%emt 0:00:38]} Kf6 {[%emt 0:00:07]} 46. Rxd7 {[%emt 0:00:28]} Raxd7 {[%emt 0:00:03]} 47. Bxd7 {[%emt 0:00:09]} Rxd7 {[%emt 0:00:09]} 48. Kb5 {[%emt 0:00:18]} Re7 {[%emt 0:01:12]} 49. Rh2 {[%emt 0:00:31]} Re3 {[%emt 0:00:23]} 50. Rf2 {[%emt 0:00:25]} Ke5 {[%emt 0:00:31]} 51. Kxa4 {[%emt 0:00:25]} Kxd5 {[%emt 0:00:09]} 52. Kb5 {[%emt 0:00:03]} Ke6 {[%emt 0:01:49]} 53. a4 {[%emt 0:00:47]} Kd7 {[%emt 0:01:43]} 54. a5 {[%emt 0:00:36]} Kc7 {[%emt 0:00:06]} 55. a6 {[%emt 0:00:48]} d5 {[%emt 0:02:08]} 56. Kc5 {[%emt 0:01:03]} d4 {[%emt 0:02:04]} 57. Kxd4 {[%emt 0:00:25]} Kb6 {[%emt 0:00:07]} 58. a7 {[%emt 0:00:21]} Kxa7 {[%emt 0:00:03]} 59. Kc4 {[%emt 0:00:16]} Kb6 {[%emt 0:00:47]} 60. Kb4 {[%emt 0:00:10]} Kc6 {[%emt 0:00:26]} 61. Kc4 {[%emt 0:00:21]} Kd6 {[%emt 0:00:58]} 62. Rd2+ {[%emt 0:00:38]} Ke5 {[%emt 0:01:10]} 63. Rd3 {[%emt 0:00:18]} Rxd3 {[%emt 0:00:06]} 64. Kxd3 {[%emt 0:00:04]} Kd5 {[%emt 0:00:04]} 65. Kc3 {[%emt 0:00:11]} Kc5 {[%emt 0:00:04]} 66. Kxb3 {[%emt 0:00:17]} Kd4 {[%emt 0:00:04]} 67. Ka4 {[%emt 0:00:28]} Ke3 {[%emt 0:00:04]} 68. b4 {[%emt 0:00:05]} Kxf3 {[%emt 0:00:04]} 69. b5 {[%emt 0:00:04]} 1/2-1/2

[Event "FIDE WCCC Open-08 2024"]
[Site "Montesilvano"]
[Date "2024.11.24"]
[Round "9.4"]
[White "Xu, Zhihan (Samuel)"]
[Black "Divith Reddy Adulla"]
[Result "0-1"]
[ECO "B99"]
[WhiteElo "1881"]
[BlackElo "1784"]
[Annotator "NA RC"]
[PlyCount "88"]
[EventDate "2024.11.18"]
[EventType "swiss"]
[EventCountry "ITA"]
[SourceTitle "playchess.com"]
[Source "ChessBase"]
[SourceQuality "1"]
[TimeControl "5400+30"]

1. e4 {[%emt 0:00:30]} c5 {[%emt 0:00:06]} 2. Nf3 {[%emt 0:00:00]} d6 {[%emt 0:00:16]} 3. d4 {[%emt 0:00:00]} cxd4 {[%emt 0:00:06]} 4. Nxd4 {[%emt 0:00:00]} Nf6 {[%emt 0:00:07]} 5. Nc3 {[%emt 0:00:00]} a6 {[%emt 0:00:07]} 6. Bg5 {[%emt 0:00:00]} e6 {[%emt 0:00:27]} 7. f4 {[%emt 0:00:00]} Be7 {[%emt 0:00:09]} 8. Qf3 {[%emt 0:00:00]} Nbd7 {[%emt 0:00:49]} 9. O-O-O {[%emt 0:00:00]} Qc7 {[%emt 0:00:21]} 10. Bd3 {[%emt 0:00:01]} b5 {[%emt 0:02:37]} 11. Rhe1 {[%emt 0:00:04]} Bb7 {[%emt 0:02:53]} 12. Qg3 {[%emt 0:00:03]} Nc5 {[%emt 0:05:14]} 13. Bxf6 {[%emt 0:35:07]} gxf6 {[%emt 0:01:13]} 14. Qg7 {[%emt 0:05:05]} Rf8 {[%emt 0:01:58]} 15. e5 {[%emt 0:16:00]} dxe5 {[%emt 0:02:29]} 16. fxe5 {[%emt 0:02:38]} O-O-O {[%emt 0:02:18]} 17. Bxh7 {[%emt 0:17:12]} fxe5 {[%emt 0:01:26]} 18. Rxe5 {[%emt 0:02:36]} Bd6 {[%emt 0:01:37]} 19. Rh5 {[%emt 0:03:14]} Bxh2 {[%emt 0:01:11]} 20. Kb1 {[%emt 0:10:30]} Bf4 {[%emt 0:01:08]} 21. Qg4 {[%emt 0:06:00]} Be5 {[%emt 0:01:10]} 22. b4 {[%emt 0:01:35]} Nd7 {[%emt 0:01:02]} 23. Nce2 {[%emt 0:00:45]} Nf6 {[%emt 0:00:20]} 24. Qh3 {[%emt 0:00:38]} Nxh5 {[%emt 0:00:14]} 25. Qxh5 {[%emt 0:00:11]} Bxg2 {[%emt 0:00:44]} 26. Qg4 {[%emt 0:00:48]} Bd5 {[%emt 0:00:22]} 27. Bd3 {[%emt 0:00:32]} f5 {[%emt 0:01:12]} 28. Qg1 {[%emt 0:00:21]} Qb6 {[%emt 0:00:59]} 29. c3 {[%emt 0:00:37]} Qc7 {[%emt 0:01:18]} 30. Qe3 {[%emt 0:00:23]} Rde8 {[%emt 0:01:27]} 31. Qd2 {[%emt 0:00:30]} f4 {[%emt 0:00:20]} 32. Nc1 {[%emt 0:00:35]} f3 {[%emt 0:00:34]} 33. a4 {[%emt 0:00:27]} f2 {[%emt 0:01:20]} 34. axb5 {[%emt 0:00:27]} axb5 {[%emt 0:00:44]} 35. Nxb5 {[%emt 0:00:26]} Qb6 {[%emt 0:00:39]} 36. c4 {[%emt 0:00:39]} Bc6 {[%emt 0:01:38]} 37. Na3 {[%emt 0:00:33]} Be4 {[%emt 0:01:57]} 38. Bxe4 {[%emt 0:00:29]} f1=Q {[%emt 0:00:06]} 39. Qd7+ {[%emt 0:00:22]} Kb8 {[%emt 0:00:05]} 40. Rxf1 {[%emt 0:00:28]} Qxb4+ {[%emt 0:00:06]} 41. Kc2 {[%emt 0:00:38]} Qc3+ {[%emt 0:00:05]} 42. Kd1 {[%emt 0:00:30]} Rxf1+ {[%emt 0:00:09]} 43. Ke2 {[%emt 0:00:04]} Re1+ {[%emt 0:00:07]} 44. Kf2 {[%emt 0:00:08]} Qg3# {[%emt 0:00:06]} 0-1

[Event "FIDE WCCC Open-08 2024"]
[Site "Montesilvano"]
[Date "2024.11.24"]
[Round "9.5"]
[White "Badescu, Matei-Andrei"]
[Black "Elemes, Nurmukhamed"]
[Result "0-1"]
[ECO "B22"]
[WhiteElo "1829"]
[BlackElo "1735"]
[Annotator "NA RC"]
[PlyCount "73"]
[EventDate "2024.11.18"]
[EventType "swiss"]
[EventCountry "ITA"]
[SourceTitle "playchess.com"]
[Source "ChessBase"]
[SourceQuality "1"]
[TimeControl "5400+30"]

1. e4 {[%emt 0:00:02]} c5 {[%emt 0:00:05]} 2. c3 {[%emt 0:00:09]} Nf6 {[%emt 0:00:07]} 3. e5 {[%emt 0:00:07]} Nd5 {[%emt 0:00:27]} 4. d4 {[%emt 0:00:05]} cxd4 {[%emt 0:00:06]} 5. Nf3 {[%emt 0:00:10]} Nc6 {[%emt 0:00:20]} 6. cxd4 {[%emt 0:00:08]} d6 {[%emt 0:00:05]} 7. Bc4 {[%emt 0:00:11]} Nb6 {[%emt 0:00:17]} 8. Bb5 {[%emt 0:00:33]} dxe5 {[%emt 0:00:16]} 9. Nxe5 {[%emt 0:00:17]} Bd7 {[%emt 0:01:02]} 10. Nxd7 {[%emt 0:00:24]} Qxd7 {[%emt 0:00:05]} 11. Nc3 {[%emt 0:00:08]} e6 {[%emt 0:00:25]} 12. O-O {[%emt 0:00:38]} a6 {[%emt 0:00:55]} 13. Bxc6 {[%emt 0:01:29]} Qxc6 {[%emt 0:00:30]} 14. Qg4 {[%emt 0:07:36]} h5 {[%emt 0:02:45]} 15. Qe2 {[%emt 0:06:06]} Rd8 {[%emt 0:04:41]} 16. Rd1 {[%emt 0:08:57]} Nd5 {[%emt 0:07:34]} 17. Bd2 {[%emt 0:02:05]} Be7 {[%emt 0:07:20]} 18. Rac1 {[%emt 0:01:04]} Nxc3 {[%emt 0:02:40]} 19. bxc3 {[%emt 0:06:37]} Ba3 {[%emt 0:02:50]} 20. Rb1 {[%emt 0:01:39]} b5 {[%emt 0:05:40]} 21. Qe5 {[%emt 0:02:07]} Kf8 {[%emt 0:05:50]} 22. Qe2 {[%emt 0:06:25]} Qd5 {[%emt 0:05:20]} 23. Rb3 {[%emt 0:02:47]} Bd6 {[%emt 0:03:00]} 24. Be3 {[%emt 0:01:30]} g6 {[%emt 0:03:30]} 25. Rdb1 {[%emt 0:02:38]} Kg7 {[%emt 0:01:15]} 26. a4 {[%emt 0:05:50]} bxa4 {[%emt 0:03:47]} 27. Rb6 {[%emt 0:01:10]} Bc7 {[%emt 0:03:41]} 28. Rb7 {[%emt 0:06:45]} Qc6 {[%emt 0:02:57]} 29. Bg5 {[%emt 0:02:20]} Rb8 {[%emt 0:02:20]} 30. Rxb8 {[%emt 0:01:04]} Rxb8 {[%emt 0:00:21]} 31. Rxb8 {[%emt 0:00:13]} Bxb8 {[%emt 0:00:19]} 32. Qb2 {[%emt 0:00:43]} Qb5 {[%emt 0:02:00]} 33. Qc1 {[%emt 0:00:09]} a3 {[%emt 0:01:15]} 34. Bh6+ {[%emt 0:00:06]} Kh7 {[%emt 0:00:16]} 35. Bf8 {[%emt 0:00:06]} Bf4 {[%emt 0:00:15]} 36. Qa1 {[%emt 0:00:17]} Qb2 {[%emt 0:00:17]} 37. Qe1 {[%emt 0:01:09]} 0-1

[Event "FIDE WCCC Open-08 2024"]
[Site "Montesilvano"]
[Date "2024.11.24"]
[Round "9.6"]
[White "Mani, Sarbartho"]
[Black "Morozevich, Kirill Aleks"]
[Result "0-1"]
[ECO "C42"]
[WhiteElo "1824"]
[BlackElo "1484"]
[Annotator "NA RC"]
[PlyCount "80"]
[EventDate "2024.11.18"]
[EventType "swiss"]
[EventCountry "ITA"]
[SourceTitle "playchess.com"]
[Source "ChessBase"]
[SourceQuality "1"]
[TimeControl "5400+30"]

1. e4 {[%emt 0:00:03]} e5 {[%emt 0:00:06]} 2. Nf3 {[%emt 0:00:11]} Nf6 {[%emt 0:00:05]} 3. Nxe5 {[%emt 0:00:07]} d6 {[%emt 0:00:07]} 4. Nf3 {[%emt 0:00:33]} Nxe4 {[%emt 0:00:08]} 5. d4 {[%emt 0:00:32]} d5 {[%emt 0:00:07]} 6. Bd3 {[%emt 0:00:25]} Be7 {[%emt 0:00:10]} 7. O-O {[%emt 0:00:36]} O-O {[%emt 0:00:07]} 8. Nbd2 {[%emt 0:00:23]} Nxd2 {[%emt 0:02:08]} 9. Bxd2 {[%emt 0:00:22]} Bg4 {[%emt 0:00:16]} 10. Re1 {[%emt 0:02:02]} Nd7 {[%emt 0:00:20]} 11. Be2 {[%emt 0:01:15]} Bf6 {[%emt 0:02:46]} 12. c3 {[%emt 0:00:55]} Re8 {[%emt 0:01:07]} 13. h3 {[%emt 0:00:57]} Bh5 {[%emt 0:00:11]} 14. Bf4 {[%emt 0:00:48]} c6 {[%emt 0:02:23]} 15. Nd2 {[%emt 0:04:05]} Bg6 {[%emt 0:01:18]} 16. Bg4 {[%emt 0:00:57]} Nb6 {[%emt 0:03:31]} 17. Rxe8+ {[%emt 1:24:49]} Qxe8 {[%emt 0:00:15]} 18. Be3 {[%emt 0:00:00]} Qe7 {[%emt 0:03:40]} 19. a4 {[%emt 0:00:00]} a5 {[%emt 0:02:23]} 20. Qb3 {[%emt 0:00:00]} Qc7 {[%emt 0:00:24]} 21. g3 {[%emt 0:00:00]} Re8 {[%emt 0:01:35]} 22. Bf4 {[%emt 0:00:00]} Qd8 {[%emt 0:00:29]} 23. Qd1 {[%emt 0:00:00]} Nc8 {[%emt 0:07:29]} 24. Qf1 {[%emt 0:00:00]} h5 {[%emt 0:02:05]} 25. Bf3 {[%emt 0:00:00]} Qe7 {[%emt 0:00:52]} 26. h4 {[%emt 0:00:00]} Bf5 {[%emt 0:09:15]} 27. Bxh5 {[%emt 0:00:00]} Bxh4 {[%emt 0:00:23]} 28. gxh4 {[%emt 0:00:00]} Qxh4 {[%emt 0:00:13]} 29. Bxf7+ {[%emt 0:00:00]} Kxf7 {[%emt 0:00:16]} 30. Bg3 {[%emt 0:00:00]} Qh5 {[%emt 0:00:35]} 31. Qg2 {[%emt 0:00:00]} Re2 {[%emt 0:04:00]} 32. Bf4 {[%emt 0:00:00]} Bg4 {[%emt 0:02:39]} 33. Qh2 {[%emt 0:00:00]} Qg6 {[%emt 0:09:18]} 34. Qg3 {[%emt 0:00:00]} Ne7 {[%emt 0:00:58]} 35. Nf1 {[%emt 0:00:00]} Nf5 {[%emt 0:00:59]} 36. Qh2 {[%emt 0:00:00]} Bf3+ {[%emt 0:01:44]} 37. Ng3 {[%emt 0:00:00]} Re4 {[%emt 0:00:28]} 38. Bd2 {[%emt 0:00:00]} Rh4 {[%emt 0:00:17]} 39. Qxh4 {[%emt 0:00:00]} Nxh4 {[%emt 0:00:08]} 40. Re1 {[%emt 0:00:00]} Be4 {[%emt 0:00:41]} 0-1

[Event "FIDE WCCC Open-08 2024"]
[Site "Montesilvano"]
[Date "2024.11.24"]
[Round "9.7"]
[White "Meiyazhagan, Kaviinayan"]
[Black "Ayaan Phutane"]
[Result "1/2-1/2"]
[ECO "C00"]
[WhiteElo "1707"]
[BlackElo "1796"]
[Annotator "NA RC"]
[PlyCount "143"]
[EventDate "2024.11.18"]
[EventType "swiss"]
[EventCountry "ITA"]
[SourceTitle "playchess.com"]
[Source "ChessBase"]
[SourceQuality "1"]
[TimeControl "5400+30"]

1. e4 {[%emt 0:00:08]} e6 {[%emt 0:00:07]} 2. Nf3 {[%emt 0:00:09]} d5 {[%emt 0:00:06]} 3. Nc3 {[%emt 0:00:08]} d4 {[%emt 0:00:06]} 4. Ne2 {[%emt 0:00:07]} c5 {[%emt 0:00:04]} 5. Ng3 {[%emt 0:00:23]} Nc6 {[%emt 0:00:21]} 6. Bc4 {[%emt 0:01:16]} Bd6 {[%emt 0:01:40]} 7. d3 {[%emt 0:00:34]} b5 {[%emt 0:00:48]} 8. Bb3 {[%emt 0:00:18]} Qc7 {[%emt 0:03:19]} 9. O-O {[%emt 0:09:56]} Nf6 {[%emt 0:03:29]} 10. c3 {[%emt 0:01:43]} O-O {[%emt 0:15:53]} 11. cxd4 {[%emt 0:06:39]} cxd4 {[%emt 0:02:40]} 12. Bg5 {[%emt 0:01:49]} Nd7 {[%emt 0:01:11]} 13. Rc1 {[%emt 0:05:35]} Qb6 {[%emt 0:00:41]} 14. a3 {[%emt 0:04:45]} Bb7 {[%emt 0:00:34]} 15. Qd2 {[%emt 0:04:13]} Rac8 {[%emt 0:02:15]} 16. Nh5 {[%emt 0:03:04]} Qa5 {[%emt 1:05:16]} 17. Qxa5 {[%emt 0:06:10]} Nxa5 {[%emt 0:00:00]} 18. Ba2 {[%emt 0:01:03]} Nc6 {[%emt 0:00:00]} 19. Bb3 {[%emt 0:20:09]} Nde5 {[%emt 0:00:00]} 20. Nxe5 {[%emt 0:01:11]} Nxe5 {[%emt 0:00:00]} 21. Rcd1 {[%emt 0:03:46]} Ba6 {[%emt 0:00:00]} 22. f4 {[%emt 0:07:08]} Nd7 {[%emt 0:00:00]} 23. Rf3 {[%emt 0:03:36]} h6 {[%emt 0:00:00]} 24. Bh4 {[%emt 0:01:33]} Kh7 {[%emt 0:00:00]} 25. e5 {[%emt 0:03:35]} Bc7 {[%emt 0:00:00]} 26. g4 {[%emt 0:03:04]} Bb7 {[%emt 0:00:00]} 27. Rff1 {[%emt 0:02:25]} g5 {[%emt 0:00:00]} 28. fxg5 {[%emt 0:01:23]} hxg5 {[%emt 0:00:00]} 29. Bxg5 {[%emt 0:01:39]} Nxe5 {[%emt 0:00:00]} 30. Be7 {[%emt 0:04:40]} Nxg4 {[%emt 0:00:00]} 31. Nf6+ {[%emt 0:00:41]} Nxf6 {[%emt 0:00:00]} 32. Rxf6 {[%emt 0:00:46]} Be5 {[%emt 0:00:00]} 33. Rf2 {[%emt 0:01:16]} Rg8+ {[%emt 0:00:00]} 34. Kf1 {[%emt 0:00:07]} Rg7 {[%emt 0:00:00]} 35. Re1 {[%emt 0:00:18]} Rc7 {[%emt 0:00:00]} 36. Rxe5 {[%emt 0:01:22]} Rxe7 {[%emt 0:00:00]} 37. Rxb5 {[%emt 0:00:21]} Ba6 {[%emt 0:00:00]} 38. Rh5+ {[%emt 0:00:07]} Kg8 {[%emt 0:00:00]} 39. Rf3 {[%emt 0:00:12]} Rb7 {[%emt 0:00:00]} 40. Rfh3 {[%emt 0:01:08]} Kf8 {[%emt 0:01:05]} 41. Ra5 {[%emt 0:00:57]} Rxb3 {[%emt 0:00:24]} 42. Rxa6 {[%emt 0:00:08]} Rxb2 {[%emt 0:00:08]} 43. Rxa7 {[%emt 0:00:31]} Rgg2 {[%emt 0:02:46]} 44. Rf3 {[%emt 0:01:36]} Rg7 {[%emt 0:00:42]} 45. Ra8+ {[%emt 0:00:16]} Ke7 {[%emt 0:00:16]} 46. Ra7+ {[%emt 0:00:10]} Kd6 {[%emt 0:00:20]} 47. Rfxf7 {[%emt 0:00:29]} Rxf7+ {[%emt 0:00:09]} 48. Rxf7 {[%emt 0:00:07]} Rxh2 {[%emt 0:00:06]} 49. Rf2 {[%emt 0:00:20]} Rh1+ {[%emt 0:00:15]} 50. Ke2 {[%emt 0:00:37]} Ra1 {[%emt 0:00:11]} 51. Rf4 {[%emt 0:00:05]} Kd5 {[%emt 0:00:06]} 52. Rf8 {[%emt 0:00:18]} Ra2+ {[%emt 0:00:38]} 53. Kd1 {[%emt 0:00:44]} Rxa3 {[%emt 0:00:43]} 54. Ke2 {[%emt 0:00:13]} Ra2+ {[%emt 0:00:08]} 55. Kd1 {[%emt 0:00:30]} Kc5 {[%emt 0:00:28]} 56. Rc8+ {[%emt 0:00:43]} Kd5 {[%emt 0:00:24]} 57. Rd8+ {[%emt 0:00:16]} Ke5 {[%emt 0:00:27]} 58. Ke1 {[%emt 0:00:27]} Rh2 {[%emt 0:01:13]} 59. Kd1 {[%emt 0:00:29]} Rb2 {[%emt 0:01:12]} 60. Ke1 {[%emt 0:00:26]} Ra2 {[%emt 0:00:12]} 61. Kd1 {[%emt 0:00:19]} Kf4 {[%emt 0:00:35]} 62. Rxd4+ {[%emt 0:00:16]} Ke3 {[%emt 0:00:05]} 63. Rd6 {[%emt 0:00:33]} e5 {[%emt 0:00:31]} 64. Rd5 {[%emt 0:00:31]} Rd2+ {[%emt 0:00:43]} 65. Kc1 {[%emt 0:00:30]} Rxd3 {[%emt 0:00:12]} 66. Rxe5+ {[%emt 0:00:06]} Kd4 {[%emt 0:00:08]} 67. Re8 {[%emt 0:00:16]} Rh3 {[%emt 0:00:08]} 68. Rd8+ {[%emt 0:00:05]} Kc3 {[%emt 0:00:06]} 69. Rc8+ {[%emt 0:00:05]} Kb4 {[%emt 0:00:09]} 70. Kb2 {[%emt 0:00:24]} Rh2+ {[%emt 0:00:05]} 71. Rc2 {[%emt 0:00:11]} Rxc2+ {[%emt 0:00:07]} 72. Kxc2 {[%emt 0:00:05]} 1/2-1/2

[Event "FIDE WCCC Open-08 2024"]
[Site "Montesilvano"]
[Date "2024.11.24"]
[Round "9.8"]
[White "Hu, Junyan"]
[Black "Demchenko, Timofei"]
[Result "1/2-1/2"]
[ECO "C02"]
[WhiteElo "1924"]
[BlackElo "1969"]
[Annotator "NA RC"]
[PlyCount "79"]
[EventDate "2024.11.18"]
[EventType "swiss"]
[EventCountry "ITA"]
[SourceTitle "playchess.com"]
[Source "ChessBase"]
[SourceQuality "1"]
[TimeControl "5400+30"]

1. e4 {[%emt 0:00:03]} e6 {[%emt 0:00:04]} 2. d4 {[%emt 0:00:03]} d5 {[%emt 0:00:05]} 3. e5 {[%emt 0:00:10]} c5 {[%emt 0:00:10]} 4. c3 {[%emt 0:00:08]} Nc6 {[%emt 0:00:05]} 5. Nf3 {[%emt 0:00:05]} Qb6 {[%emt 0:00:04]} 6. a3 {[%emt 0:00:06]} c4 {[%emt 0:00:06]} 7. Nbd2 {[%emt 0:00:05]} Na5 {[%emt 0:00:06]} 8. Rb1 {[%emt 0:00:08]} Bd7 {[%emt 0:00:26]} 9. h4 {[%emt 0:00:17]} Ne7 {[%emt 0:01:44]} 10. b4 {[%emt 0:00:12]} cxb3 {[%emt 0:01:03]} 11. Nxb3 {[%emt 0:00:03]} Ba4 {[%emt 0:01:23]} 12. Nxa5 {[%emt 0:00:05]} Bxd1 {[%emt 0:00:14]} 13. Rxb6 {[%emt 0:00:02]} axb6 {[%emt 0:00:18]} 14. Bb5+ {[%emt 0:00:03]} Kd8 {[%emt 0:00:43]} 15. Nxb7+ {[%emt 0:00:05]} Kc7 {[%emt 0:00:40]} 16. Kxd1 {[%emt 0:00:10]} Kxb7 {[%emt 0:00:15]} 17. Ng5 {[%emt 0:00:05]} Nc6 {[%emt 0:14:38]} 18. Nxf7 {[%emt 0:03:02]} Rg8 {[%emt 0:00:27]} 19. a4 {[%emt 0:00:26]} h6 {[%emt 0:08:58]} 20. g4 {[%emt 0:00:43]} Be7 {[%emt 0:03:57]} 21. f4 {[%emt 0:02:15]} Rgf8 {[%emt 0:08:23]} 22. Nd6+ {[%emt 0:00:18]} Bxd6 {[%emt 0:02:14]} 23. exd6 {[%emt 0:00:29]} Na7 {[%emt 0:05:56]} 24. Bd7 {[%emt 0:03:31]} Rfd8 {[%emt 0:00:48]} 25. Bxe6 {[%emt 0:00:14]} Rxd6 {[%emt 0:00:57]} 26. Bf5 {[%emt 0:05:21]} Nc6 {[%emt 0:03:00]} 27. Bc2 {[%emt 0:01:20]} Re8 {[%emt 0:03:46]} 28. f5 {[%emt 0:02:17]} Na5 {[%emt 0:02:29]} 29. Bf4 {[%emt 0:01:08]} Rc6 {[%emt 0:00:25]} 30. Rh3 {[%emt 0:04:51]} Nc4 {[%emt 0:03:17]} 31. Bb3 {[%emt 0:05:04]} Re4 {[%emt 0:03:22]} 32. Bxc4 {[%emt 0:02:04]} Rxc4 {[%emt 0:02:46]} 33. Rf3 {[%emt 0:03:24]} Rxa4 {[%emt 0:03:47]} 34. g5 {[%emt 0:00:34]} Ra1+ {[%emt 0:15:34]} 35. Bc1 {[%emt 0:07:43]} Rxh4 {[%emt 0:03:02]} 36. f6 {[%emt 0:00:26]} gxf6 {[%emt 0:00:52]} 37. gxf6 {[%emt 0:00:03]} Rh1+ {[%emt 0:00:23]} 38. Kd2 {[%emt 0:00:31]} Raxc1 {[%emt 0:01:18]} 39. f7 {[%emt 0:00:26]} Rhd1+ {[%emt 0:00:35]} 40. Ke2 {[%emt 0:00:48]} 1/2-1/2

[Event "FIDE WCCC Open-08 2024"]
[Site "Montesilvano"]
[Date "2024.11.24"]
[Round "9.9"]
[White "Alloussi, Arian"]
[Black "Rajabov, Abdurahmon"]
[Result "0-1"]
[ECO "C00"]
[WhiteElo "1745"]
[BlackElo "1515"]
[Annotator "NA RC"]
[PlyCount "92"]
[EventDate "2024.11.18"]
[EventType "swiss"]
[EventCountry "ITA"]
[SourceTitle "playchess.com"]
[Source "ChessBase"]
[SourceQuality "1"]
[TimeControl "5400+30"]

1. e4 {[%emt 0:00:02]} e6 {[%emt 0:00:02]} 2. d3 {[%emt 0:00:08]} d5 {[%emt 0:01:39]} 3. Qe2 {[%emt 0:00:06]} Nf6 {[%emt 0:00:43]} 4. Nf3 {[%emt 0:00:08]} c5 {[%emt 0:00:09]} 5. g3 {[%emt 0:00:41]} Nc6 {[%emt 0:00:10]} 6. Bg2 {[%emt 0:00:18]} d4 {[%emt 0:00:11]} 7. O-O {[%emt 0:00:40]} e5 {[%emt 0:00:05]} 8. Nbd2 {[%emt 0:03:05]} Bd6 {[%emt 0:00:08]} 9. Nb3 {[%emt 0:00:38]} O-O {[%emt 0:04:12]} 10. Re1 {[%emt 0:04:44]} Nd7 {[%emt 0:00:15]} 11. c3 {[%emt 0:01:34]} b5 {[%emt 0:00:40]} 12. cxd4 {[%emt 0:00:55]} cxd4 {[%emt 0:00:12]} 13. Bd2 {[%emt 0:06:33]} a5 {[%emt 0:00:20]} 14. a4 {[%emt 0:01:01]} bxa4 {[%emt 0:00:27]} 15. Rxa4 {[%emt 0:00:28]} Nb6 {[%emt 0:00:11]} 16. Bxa5 {[%emt 0:06:40]} Be6 {[%emt 0:02:19]} 17. Bxb6 {[%emt 0:02:32]} Qxb6 {[%emt 0:00:14]} 18. Rxa8 {[%emt 0:01:30]} Rxa8 {[%emt 0:00:09]} 19. Ra1 {[%emt 0:03:34]} Rb8 {[%emt 0:00:29]} 20. Nc1 {[%emt 0:03:46]} Qxb2 {[%emt 0:02:00]} 21. Qxb2 {[%emt 0:00:59]} Rxb2 {[%emt 0:00:05]} 22. Bf1 {[%emt 0:05:38]} Kf8 {[%emt 0:00:38]} 23. Ng5 {[%emt 0:03:18]} Ke7 {[%emt 0:00:11]} 24. Nxe6 {[%emt 0:00:35]} Kxe6 {[%emt 0:01:27]} 25. Ra6 {[%emt 0:02:02]} Nb4 {[%emt 0:00:15]} 26. Ra8 {[%emt 0:05:29]} Rb1 {[%emt 0:08:18]} 27. Rc8 {[%emt 0:01:33]} f5 {[%emt 0:00:32]} 28. f3 {[%emt 0:05:15]} fxe4 {[%emt 0:00:26]} 29. fxe4 {[%emt 0:00:08]} Be7 {[%emt 0:00:03]} 30. Kg2 {[%emt 0:01:34]} Bg5 {[%emt 0:00:55]} 31. Ne2 {[%emt 0:01:04]} Kf6 {[%emt 0:01:05]} 32. Rb8 {[%emt 0:02:08]} Rb2 {[%emt 0:00:08]} 33. Rb6+ {[%emt 0:04:40]} Kf7 {[%emt 0:00:16]} 34. h4 {[%emt 0:01:29]} Be7 {[%emt 0:00:19]} 35. Kg1 {[%emt 0:04:07]} Nxd3 {[%emt 0:00:08]} 36. Rc6 {[%emt 0:00:19]} Nb4 {[%emt 0:01:10]} 37. Rc7 {[%emt 0:01:30]} d3 {[%emt 0:03:18]} 38. Nc3 {[%emt 0:02:40]} Rc2 {[%emt 0:00:27]} 39. Nb5 {[%emt 0:04:30]} d2 {[%emt 0:06:16]} 40. Be2 {[%emt 0:02:50]} Rc1+ {[%emt 0:00:07]} 41. Kg2 {[%emt 0:00:42]} d1=Q {[%emt 1:10:21]} 42. Bxd1 {[%emt 0:00:27]} Rxd1 {[%emt 0:00:00]} 43. Rc4 {[%emt 0:01:14]} Nd3 {[%emt 0:00:00]} 44. Kf3 {[%emt 0:01:22]} Nc5 {[%emt 0:00:00]} 45. Ke2 {[%emt 0:01:42]} Rb1 {[%emt 0:00:00]} 46. Nc3 {[%emt 0:01:34]} Rb2+ {[%emt 0:02:30]} 0-1